bitfinex/quotes_BTCUSD_20251012
["timestamp","ask_amount","ask_price","bid_price","bid_amount"]
[1760301293861,0.17295054,115640.0,115620.0,0.02496]
[1760301293862,0.61932416,115640.0,115620.0,0.02496]
[1760301294081,0.1730369,115590.0,115580.0,0.06412]
[1760301294291,1.16046765,115590.0,115580.0,0.04156]
[1760301294501,1.10858765,115590.0,115580.0,0.04156]
[1760301295344,1.10858765,115590.0,115580.0,0.04205652]
[1760301295797,1.10858765,115590.0,115580.0,0.04505652]
[1760301296243,6.16046765,115590.0,115580.0,0.04505652]
[1760301296450,6.16046765,115590.0,115580.0,0.04705652]
[1760301296656,5.17308524,115550.0,115540.0,0.001]
[1760301296865,1.07388599,115550.0,115540.0,0.0425564]
[1760301297085,1.16051599,115550.0,115540.0,0.0425564]
[1760301297561,6.16051599,115550.0,115540.0,0.0425564]
[1760301298060,6.69642674,115550.0,115540.0,0.04348743]
[1760301298266,6.69642674,115550.0,115540.0,0.04339509]
[1760301298487,1.69642674,115550.0,115540.0,0.04215181]
[1760301298698,6.72174574,115550.0,115540.0,0.04115181]
[1760301299158,6.72174574,115550.0,115540.0,0.04215181]
[1760301299576,1.72174574,115550.0,115540.0,0.04215181]
[1760301299748,6.72174574,115550.0,115540.0,0.04115181]
[1760301300335,6.72174574,115550.0,115510.0,0.04196]
[1760301300336,0.17313019,115520.0,115510.0,0.04196]
[1760301300546,0.02715,115520.0,115510.0,0.04200958]
[1760301300753,0.34,115520.0,115510.0,0.27411476]
[1760301301169,1.07619094,115520.0,115510.0,0.27411476]
[1760301301386,0.34,115520.0,115510.0,0.10096958]
[1760301301598,0.34,115530.0,115520.0,0.17312591]
[1760301301848,0.74254025,115550.0,115530.0,0.1731152]
[1760301302053,0.73388599,115550.0,115530.0,0.1956752]
[1760301302258,0.1731152,115530.0,115510.0,0.06656958]
[1760301302487,1.07617595,115530.0,115520.0,0.17313019]
[1760301302725,1.07617595,115530.0,115520.0,0.19569019]
[1760301302945,1.16339595,115530.0,115510.0,0.23971333]
[1760301303151,1.16339595,115530.0,115510.0,0.23771333]
[1760301303587,1.16339595,115530.0,115510.0,0.04200958]
[1760301303588,0.73619094,115520.0,115510.0,0.04200958]
[1760301303793,1.12815094,115520.0,115510.0,0.04200958]
[1760301304007,1.16341094,115520.0,115510.0,0.04200958]
[1760301304460,1.16341094,115520.0,115510.0,0.04300958]
[1760301304682,6.16341094,115520.0,115510.0,0.04300958]
[1760301304906,6.16341094,115520.0,115510.0,0.04200958]
[1760301305125,6.16341094,115520.0,115510.0,0.04300958]
[1760301305126,6.72464069,115520.0,115510.0,0.04300958]
[1760301305358,5.65281919,115520.0,115510.0,0.04400958]
[1760301305619,6.72464069,115520.0,115510.0,0.04300958]
[1760301306262,6.75479259,115520.0,115510.0,0.04300958]
[1760301306503,6.75479259,115520.0,115510.0,1e-08]
[1760301306699,5.51319016,115480.0,115470.0,0.04156]
[1760301306901,6.07625091,115480.0,115470.0,0.04160958]
[1760301307107,6.18878991,115480.0,115470.0,0.04160958]
[1760301308404,6.18878991,115480.0,115470.0,4.958e-05]
[1760301308615,6.87985254,115480.0,115470.0,4.958e-05]
[1760301308822,6.34394179,115480.0,115470.0,4.958e-05]
[1760301309049,1.34394179,115480.0,115470.0,4.958e-05]
[1760301309269,6.88085254,115480.0,115470.0,4.958e-05]
[1760301309713,6.87985254,115480.0,115470.0,4.958e-05]
[1760301309894,6.88085254,115480.0,115470.0,4.958e-05]
[1760301310392,6.24447091,115480.0,115470.0,4.958e-05]
[1760301310830,1.29994181,115480.0,115470.0,4.958e-05]
[1760301311042,6.86085255,115480.0,115470.0,4.958e-05]
[1760301311253,6.86185255,115480.0,115470.0,4.958e-05]
[1760301311461,6.96185254,115480.0,115470.0,4.958e-05]
[1760301312112,6.96085254,115480.0,115470.0,4.958e-05]
[1760301312533,6.96185254,115480.0,115470.0,4.958e-05]
[1760301312743,6.24447091,115480.0,115470.0,4.958e-05]
[1760301313163,6.24347091,115480.0,115470.0,4.958e-05]
[1760301313575,1.24347091,115480.0,115470.0,4.958e-05]
[1760301313781,1.24447091,115480.0,115470.0,4.958e-05]
[1760301313996,6.24447091,115480.0,115470.0,4.958e-05]
[1760301314664,6.24547091,115480.0,115470.0,4.958e-05]
[1760301314880,6.27562281,115480.0,115470.0,4.958e-05]
[1760301315548,1.27562281,115480.0,115470.0,4.958e-05]
[1760301315780,6.93685255,115480.0,115470.0,4.958e-05]
[1760301315999,6.98540136,115480.0,115470.0,4.958e-05]
[1760301316210,6.04917593,115430.0,115420.0,0.0004]
[1760301316421,0.54041518,115430.0,115420.0,0.00089592]
[1760301316633,1.19369783,115430.0,115420.0,0.00200632]
[1760301317058,6.19369783,115430.0,115420.0,0.00200632]
[1760301317261,6.21901683,115430.0,115420.0,0.00300632]
[1760301317892,6.16354593,115430.0,115420.0,0.00200632]
[1760301318386,6.16354593,115430.0,115420.0,0.17528651]
[1760301318387,6.11158593,115430.0,115420.0,0.17528651]
[1760301318594,6.11158593,115430.0,115420.0,0.00200632]
[1760301318803,6.16354593,115430.0,115420.0,0.00200632]
[1760301321398,6.17952495,115430.0,115420.0,0.00200632]
[1760301321837,1.17952495,115430.0,115420.0,0.00200632]
[1760301322087,6.20967685,115430.0,115420.0,0.00200632]
[1760301322330,6.58510169,115420.0,115410.0,0.19576446]
[1760301322537,6.17443186,115420.0,115410.0,0.19589377]
[1760301322744,6.20969186,115420.0,115410.0,0.19589377]
[1760301322960,6.23501086,115420.0,115410.0,0.19589377]
[1760301323404,6.20485896,115420.0,115410.0,0.19589377]
[1760301323623,6.20485896,115420.0,115410.0,0.19582179]
[1760301323831,1.20485896,115420.0,115410.0,0.19582179]
[1760301324037,6.20485896,115420.0,115410.0,0.19582179]
[1760301324250,1.20485896,115420.0,115410.0,0.19582179]
[1760301324466,6.20485896,115420.0,115410.0,0.19582179]
[1760301325162,6.23501086,115420.0,115410.0,0.19582179]
[1760301325373,6.17953996,115420.0,115410.0,0.19582179]
[1760301325581,6.06516996,115420.0,115410.0,0.19582179]
[1760301325790,5.52925921,115420.0,115410.0,0.19582179]
[1760301326034,0.72516996,115420.0,115410.0,0.19582179]
[1760301326243,0.72516996,115420.0,115410.0,0.19575145]
[1760301326244,1.04919094,115420.0,115410.0,0.19575145]
[1760301326452,0.72522701,115420.0,115410.0,0.19575145]
[1760301326666,1.06522701,115420.0,115410.0,0.19575145]
[1760301326872,6.06522701,115420.0,115410.0,0.19575145]
[1760301327659,6.06522701,115420.0,115410.0,0.19569614]
[1760301328073,1.06522701,115420.0,115410.0,0.19625144]
[1760301328278,6.06522701,115420.0,115410.0,0.19625144]
[1760301328725,6.06522701,115420.0,115410.0,0.19725144]
[1760301329009,1.06522701,115420.0,115410.0,0.19725144]
[1760301329226,6.06522701,115420.0,115410.0,0.19625144]
[1760301330760,1.06522701,115420.0,115410.0,0.19625144]
[1760301330973,6.06522701,115420.0,115410.0,0.19625144]
[1760301331395,5.55194682,115420.0,115410.0,0.19625144]
[1760301331595,5.72522701,115420.0,115410.0,0.19625144]
[1760301331799,5.52931626,115420.0,115410.0,0.19625144]
[1760301332005,1.06522701,115420.0,115410.0,0.36954664]
[1760301332863,1.06522701,115420.0,115410.0,0.19625144]
[1760301333457,6.06522701,115420.0,115410.0,0.19625144]
[1760301334202,0.01603607,115420.0,115410.0,0.36954664]
[1760301334402,0.72522701,115420.0,115410.0,0.19625144]
[1760301334656,1.06522701,115420.0,115410.0,0.36954664]
[1760301335300,1.04919094,115420.0,115410.0,0.36954664]
[1760301335659,1.04919094,115420.0,115410.0,0.19625144]
[1760301339210,0.51328019,115420.0,115410.0,0.19625144]
[1760301339419,1.04919094,115420.0,115410.0,0.19625144]
[1760301341186,0.51328019,115420.0,115410.0,0.19625144]
[1760301341397,1.04919094,115420.0,115410.0,0.19625144]
[1760301342253,1.04919094,115420.0,115410.0,0.36954664]
[1760301343263,0.34,115420.0,115410.0,0.36954664]
[1760301343467,0.18192588,115440.0,115430.0,0.17326518]
[1760301343468,0.70916092,115440.0,115430.0,0.17326518]
[1760301343667,0.52941754,115440.0,115430.0,0.17326518]
[1760301344357,0.34,115430.0,115420.0,0.17326672]
[1760301344751,0.52944434,115430.0,115420.0,0.17326672]
[1760301345338,0.17328019,115420.0,115410.0,0.3782114]
[1760301345546,1.26693646,115430.0,115420.0,0.17328019]
[1760301345893,1.26693646,115430.0,115410.0,0.3782114]
[1760301345894,1.28313224,115430.0,115410.0,0.3782114]
[1760301346099,0.92695147,115420.0,115410.0,0.19625144]
[1760301346509,1.26695147,115420.0,115410.0,0.19625144]
[1760301346627,6.2831614,115420.0,115410.0,0.19725144]
[1760301346819,6.2831614,115420.0,115410.0,0.19625144]
[1760301347758,6.2831614,115420.0,115410.0,0.19725144]
[1760301348375,6.2831614,115420.0,115410.0,0.19625144]
[1760301349036,1.2831614,115420.0,115410.0,0.19625144]
[1760301349239,1.28317156,115420.0,115410.0,0.19625144]
[1760301349465,5.18950028,115420.0,115410.0,0.19625144]
[1760301349670,5.94317156,115420.0,115410.0,0.19625144]
[1760301349872,6.28317156,115420.0,115410.0,0.19625144]
[1760301350509,5.52950028,115420.0,115410.0,0.19625144]
[1760301350722,6.28317156,115420.0,115410.0,0.19625144]
[1760301351129,6.18317156,115420.0,115410.0,0.19625144]
[1760301351788,6.23774156,115420.0,115410.0,0.19625144]
[1760301352266,1.23774156,115420.0,115410.0,0.19625144]
[1760301352493,6.26513156,115420.0,115410.0,0.19625144]
[1760301353130,0.51146028,115420.0,115410.0,0.19625144]
[1760301353348,6.26513156,115420.0,115410.0,0.19625144]
[1760301353770,1.26513156,115420.0,115410.0,0.19625144]
[1760301353975,6.26513156,115420.0,115410.0,0.19625144]
[1760301354206,1.26513156,115420.0,115410.0,0.19625144]
[1760301354434,6.26513156,115420.0,115410.0,0.19625144]
[1760301354651,1.26513156,115420.0,115410.0,0.19625144]
[1760301354882,6.26513156,115420.0,115410.0,0.19625144]
[1760301355743,1.26513156,115420.0,115410.0,0.19625144]
[1760301355952,6.26513156,115420.0,115410.0,0.19625144]
[1760301356686,1.26513156,115420.0,115410.0,0.19625144]
[1760301356889,6.26513156,115420.0,115410.0,0.19625144]
[1760301357095,1.26513156,115420.0,115410.0,0.19625144]
[1760301357307,6.26513156,115420.0,115410.0,0.19625144]
[1760301358082,1.26513156,115420.0,115410.0,0.19625144]
[1760301358283,6.26696648,115410.0,115400.0,0.0416]
[1760301358512,6.31057657,115410.0,115400.0,0.04174808]
[1760301358671,1.34072847,115410.0,115400.0,0.04174808]
[1760301359026,6.39529847,115410.0,115400.0,0.04174808]
[1760301359291,6.39961482,115410.0,115400.0,0.04174808]
[1760301361491,6.40773298,115410.0,115400.0,0.04174808]
[1760301361896,6.40773298,115410.0,115400.0,1e-08]
[1760301362119,6.58128877,115410.0,115400.0,1e-08]
[1760301362337,6.56506868,115410.0,115400.0,1e-08]
[1760301362540,1.58130265,115410.0,115400.0,1e-08]
[1760301362746,6.58130265,115410.0,115400.0,1e-08]
[1760301363378,6.60381067,115410.0,115400.0,1e-08]
[1760301363819,1.60381067,115410.0,115400.0,1e-08]
[1760301364036,6.60381067,115410.0,115400.0,1e-08]
[1760301364231,5.85013939,115410.0,115400.0,1e-08]
[1760301364476,5.64350718,115370.0,115360.0,1e-08]
[1760301364681,5.73733055,115370.0,115360.0,1e-08]
[1760301364825,5.59134923,115360.0,115350.0,1e-08]
[1760301365032,5.59134923,115360.0,115340.0,1e-08]
[1760301365033,5.54353724,115350.0,115340.0,1e-08]
[1760301365208,5.51340038,115340.0,115330.0,0.0004]
[1760301365411,6.33651008,115340.0,115330.0,0.0004]
[1760301365633,6.39108008,115340.0,115330.0,0.0004]
[1760301366244,1.49108007,115340.0,115330.0,0.0004]
[1760301366510,6.39108008,115340.0,115330.0,0.0004]
[1760301366656,1.49108007,115340.0,115330.0,0.0014]
[1760301366914,6.51358809,115340.0,115330.0,0.0014]
[1760301367092,6.51358809,115340.0,115330.0,0.0004]
[1760301367292,1.51358809,115340.0,115330.0,0.0004]
[1760301367495,6.51358809,115340.0,115330.0,0.0004]
[1760301368098,6.4135881,115340.0,115330.0,0.0004]
[1760301368453,5.76756069,115340.0,115330.0,1e-08]
[1760301368659,5.53873441,115330.0,115320.0,0.20924986]
[1760301368868,6.33602966,115330.0,115320.0,0.20924986]
[1760301369072,6.39059966,115330.0,115320.0,0.20924986]
[1760301369776,6.41310768,115330.0,115320.0,0.20924986]
[1760301369991,5.63692838,115330.0,115320.0,0.21024986]
[1760301370193,6.36528066,115330.0,115320.0,0.21024986]
[1760301370394,6.38897624,115330.0,115320.0,0.21024986]
[1760301371477,1.38897624,115330.0,115320.0,0.21024986]
[1760301371657,6.38897624,115330.0,115320.0,0.21024986]
[1760301372097,1.38890437,115330.0,115320.0,0.21024986]
[1760301372271,6.38890437,115330.0,115320.0,0.21024986]
[1760301372699,6.46890437,115330.0,115320.0,0.21024986]
[1760301372907,6.49905627,115330.0,115320.0,0.21024986]
[1760301373112,6.52156429,115330.0,115320.0,0.21024986]
[1760301373313,1.52156429,115330.0,115320.0,0.21024986]
[1760301373749,6.52140252,115330.0,115320.0,0.21024986]
[1760301374870,1.52140252,115330.0,115320.0,0.21024986]
[1760301375263,6.52140252,115330.0,115320.0,0.21024986]
[1760301375463,6.52140252,115330.0,115320.0,0.21469608]
[1760301376174,1.52139612,115330.0,115320.0,0.21469608]
[1760301376376,6.52139612,115330.0,115320.0,0.21469608]
[1760301376937,1.52139612,115330.0,115320.0,0.21469608]
[1760301377150,1.52139612,115330.0,115310.0,0.04164]
[1760301377151,0.51343045,115320.0,115310.0,0.04164]
[1760301377337,1.35903413,115320.0,115310.0,0.04164]
[1760301377540,6.39109611,115320.0,115310.0,0.04164]
[1760301378888,1.41360413,115320.0,115310.0,0.04264]
[1760301379100,6.41360413,115320.0,115310.0,0.04264]
[1760301380280,0.63742483,115320.0,115310.0,0.04264]
[1760301380486,6.39109611,115320.0,115310.0,0.04264]
[1760301380763,1.41360413,115320.0,115310.0,0.04264]
[1760301380894,6.41360413,115320.0,115310.0,0.04264]
[1760301382970,6.41360413,115320.0,115310.0,0.04319601]
[1760301383534,1.41353389,115320.0,115310.0,0.04319601]
[1760301383815,6.41353389,115320.0,115310.0,0.04319601]
[1760301384086,6.39102587,115320.0,115310.0,0.04319601]
[1760301384301,5.21681601,115320.0,115310.0,0.04319601]
[1760301384721,5.61189601,115320.0,115310.0,0.04319601]
[1760301385172,5.55681601,115320.0,115310.0,0.04319601]
[1760301385382,6.31048729,115320.0,115310.0,0.04319601]
[1760301385954,6.39153587,115320.0,115310.0,0.04319601]
[1760301386153,6.39157092,115320.0,115310.0,0.04319601]
[1760301387568,6.39151569,115320.0,115310.0,0.04319601]
[1760301394255,6.39964264,115320.0,115310.0,0.04319601]
[1760301397074,5.62987051,115320.0,115310.0,0.04319601]
[1760301397325,6.38354179,115320.0,115310.0,0.04319601]
[1760301397463,5.62987051,115320.0,115310.0,0.04319601]
[1760301397873,6.38354179,115320.0,115310.0,0.04319601]
[1760301402328,6.41982179,115320.0,115310.0,0.04319601]
[1760301404637,6.438551,115320.0,115310.0,0.04319601]
[1760301405082,1.46105902,115320.0,115310.0,0.04319601]
[1760301405284,6.47731702,115320.0,115310.0,0.04319601]
[1760301405691,6.26313076,115320.0,115310.0,0.04319601]
[1760301406351,6.26313076,115320.0,115300.0,0.36]
[1760301406352,0.51344549,115310.0,115300.0,0.36]
[1760301406527,6.82635012,115310.0,115300.0,0.36]
[1760301406729,6.79796629,115310.0,115300.0,0.36]
[1760301407146,0.06136,115310.0,115300.0,0.56877053]
[1760301407358,0.02739,115320.0,115310.0,0.17344549]
[1760301407723,0.64687502,115330.0,115320.0,0.17343045]
[1760301407912,1.03004252,115330.0,115320.0,0.17343045]
[1760301408037,1.08264252,115330.0,115320.0,0.17343045]
[1760301408237,0.71657291,115330.0,115320.0,0.17343045]
[1760301408438,1.08264252,115330.0,115320.0,0.17343045]
[1760301408910,0.1229075,115330.0,115320.0,0.23102045]
[1760301409073,0.4892175,115330.0,115320.0,0.27270045]
[1760301409276,1.08173252,115330.0,115320.0,0.21511045]
[1760301409494,1.08173252,115330.0,115320.0,0.21611045]
[1760301409878,6.2714002,115330.0,115320.0,0.21611045]
[1760301410304,6.2714002,115330.0,115320.0,0.04268]
[1760301410540,6.29466049,115330.0,115320.0,0.04268]
[1760301410842,6.33548825,115330.0,115320.0,0.04268]
[1760301411002,6.35889776,115330.0,115320.0,0.04268]
[1760301411372,6.33548825,115330.0,115320.0,0.04268]
[1760301411615,6.35889776,115330.0,115320.0,0.04268]
[1760301411813,6.31807,115330.0,115320.0,0.04268]
[1760301412023,5.75517547,115330.0,115320.0,0.04268]
[1760301412223,6.29466049,115330.0,115320.0,0.04168]
[1760301412420,6.2946654,115330.0,115320.0,0.04168]
[1760301414258,5.75518038,115330.0,115320.0,0.04168]
[1760301414461,6.2946654,115330.0,115320.0,0.04168]
[1760301414929,6.11671689,115330.0,115320.0,0.21511045]
[1760301415143,6.08173252,115330.0,115320.0,0.21511045]
[1760301415563,6.25514793,115330.0,115320.0,0.21511045]
[1760301415962,6.25514793,115330.0,115320.0,0.04168]
[1760301416185,6.25514793,115330.0,115320.0,0.04268]
[1760301416389,5.71566291,115330.0,115320.0,0.21611045]
[1760301416596,6.25514793,115330.0,115320.0,0.21611045]
[1760301417723,6.25514793,115330.0,115320.0,0.04268]
[1760301418080,6.25514793,115330.0,115320.0,0.21611045]
[1760301418280,6.24702043,115330.0,115320.0,0.21611045]
[1760301418680,6.24702043,115330.0,115320.0,0.04268]
[1760301418949,6.24702043,115330.0,115320.0,0.21611045]
[1760301419351,6.24702043,115330.0,115320.0,0.04268]
[1760301420193,6.27388147,115330.0,115320.0,0.04268]
[1760301420508,6.24702043,115330.0,115320.0,0.04268]
[1760301421277,6.24702043,115330.0,115320.0,0.04168]
[1760301421593,6.02057502,115330.0,115320.0,0.21511045]
[1760301421792,1.19399043,115330.0,115320.0,0.27270045]
[1760301422340,1.02057502,115330.0,115320.0,0.27270045]
[1760301422828,1.19399043,115330.0,115320.0,0.23737045]
[1760301423566,0.65450541,115330.0,115320.0,0.21511045]
[1760301423681,1.24702043,115330.0,115320.0,0.04168]
[1760301424662,1.24702043,115330.0,115320.0,0.04268]
[1760301425605,0.70753541,115330.0,115320.0,0.04268]
[1760301425813,1.24702043,115330.0,115320.0,0.04268]
[1760301427669,1.24702043,115330.0,115320.0,0.04168]
[1760301428648,1.24702043,115330.0,115320.0,0.04368]
[1760301428820,1.24702043,115330.0,115320.0,0.04268]
[1760301429020,1.24702043,115330.0,115320.0,0.04368]
[1760301431266,1.24702043,115330.0,115320.0,0.04268]
[1760301431484,1.24702043,115330.0,115320.0,0.04168]
[1760301431692,1.24702043,115330.0,115320.0,0.04368]
[1760301434571,0.48109,115330.0,115320.0,0.25244045]
[1760301434775,0.42,115330.0,115320.0,0.32457045]
[1760301434986,0.00049545,115340.0,115330.0,0.17341541]
[1760301435392,0.00049545,115340.0,115330.0,0.28035541]
[1760301435596,0.00049545,115340.0,115330.0,0.40003683]
[1760301435932,0.00049545,115340.0,115330.0,0.41736683]
[1760301437128,0.00049545,115340.0,115330.0,0.41836683]
[1760301437988,0.00049545,115340.0,115330.0,0.41936683]
[1760301438505,0.00049545,115340.0,115330.0,0.42136683]
[1760301438840,0.00049545,115340.0,115330.0,0.40403683]
[1760301440772,0.00049545,115340.0,115330.0,0.28435541]
[1760301441541,0.00049545,115340.0,115330.0,0.28235541]
[1760301441836,0.54970583,115340.0,115330.0,0.28135541]
[1760301442020,6.16420085,115340.0,115330.0,0.002]
[1760301443300,2.17276141,115330.0,115320.0,0.04168]
[1760301443501,2.73838643,115330.0,115320.0,0.04168]
[1760301443734,2.82306643,115330.0,115320.0,0.04168]
[1760301444138,6.16372043,115330.0,115320.0,0.04168]
[1760301444795,6.16372043,115330.0,115320.0,0.04268]
[1760301444924,1.16372043,115330.0,115320.0,0.04268]
[1760301445148,1.16372043,115330.0,115320.0,0.04368]
[1760301445525,6.16372043,115330.0,115320.0,0.04368]
[1760301445934,1.16372043,115330.0,115320.0,0.04368]
[1760301446148,6.16372043,115330.0,115320.0,0.04368]
[1760301446589,6.16372043,115330.0,115320.0,0.04168]
[1760301446801,6.16372043,115330.0,115320.0,0.04368]
[1760301446985,5.62423541,115330.0,115320.0,0.04368]
[1760301447144,6.16372043,115330.0,115320.0,0.04368]
[1760301447746,6.16372043,115330.0,115320.0,0.04268]
[1760301447942,6.16372043,115330.0,115320.0,0.04168]
[1760301448171,6.16372043,115330.0,115320.0,0.04268]
[1760301448383,6.16372043,115330.0,115320.0,0.04368]
[1760301449244,6.16372043,115330.0,115320.0,0.04268]
[1760301449440,6.16372043,115330.0,115320.0,0.04168]
[1760301449638,6.16372043,115330.0,115320.0,0.04268]
[1760301450082,6.16372043,115330.0,115320.0,0.04168]
[1760301450295,6.16372043,115330.0,115320.0,0.04268]
[1760301450491,5.62423541,115330.0,115320.0,0.04268]
[1760301450715,6.16372043,115330.0,115320.0,0.04268]
[1760301451373,0.40195,115330.0,115320.0,0.25193045]
[1760301451598,0.34,115330.0,115320.0,0.27419045]
[1760301451804,0.07550545,115340.0,115330.0,0.17341541]
[1760301452007,0.02663545,115340.0,115330.0,0.22936541]
[1760301452182,0.57584583,115340.0,115330.0,0.22936541]
[1760301452356,5.51341541,115330.0,115320.0,0.2383657]
[1760301452560,1.11485043,115330.0,115320.0,0.2373657]
[1760301452758,1.16372043,115330.0,115320.0,0.04168]
[1760301453048,6.16372043,115330.0,115320.0,0.04268]
[1760301453453,5.51344549,115310.0,115300.0,0.40223609]
[1760301453657,6.07907051,115310.0,115300.0,0.40223609]
[1760301453897,6.16375051,115310.0,115300.0,0.40223609]
[1760301454325,5.62426549,115310.0,115300.0,0.40223609]
[1760301454503,6.16375051,115310.0,115300.0,0.40223609]
[1760301454868,6.16375051,115310.0,115300.0,0.40323609]
[1760301455270,6.16375051,115310.0,115300.0,0.40223609]
[1760301456025,6.16375051,115310.0,115300.0,0.40423609]
[1760301456571,6.16375051,115310.0,115300.0,0.40523609]
[1760301456836,6.16375051,115310.0,115300.0,0.40323609]
[1760301457355,6.16375051,115310.0,115300.0,0.40423609]
[1760301458454,1.16375051,115310.0,115300.0,0.40423609]
[1760301458682,5.28426549,115310.0,115300.0,0.40423609]
[1760301458934,0.28426549,115310.0,115300.0,0.40323609]
[1760301459146,1.16375051,115310.0,115300.0,0.40523609]
[1760301459363,5.82375051,115310.0,115300.0,0.40523609]
[1760301459580,5.28426549,115310.0,115300.0,0.40523609]
[1760301459801,6.16375051,115310.0,115300.0,0.40223609]
[1760301460023,5.62426549,115310.0,115300.0,0.40523609]
[1760301460258,1.16375051,115310.0,115300.0,0.40423609]
[1760301460582,0.62426549,115310.0,115300.0,0.40623609]
[1760301460790,0.57539549,115310.0,115300.0,0.40623609]
[1760301460985,0.57539549,115310.0,115300.0,0.44205609]
[1760301461230,0.57539549,115310.0,115300.0,0.63789662]
[1760301461631,0.36614,115310.0,115300.0,0.63789662]
[1760301461835,0.21275921,115330.0,115310.0,0.17344549]
[1760301461836,0.19955599,115330.0,115310.0,0.17344549]
[1760301462059,0.19955599,115330.0,115310.0,0.19670549]
[1760301462390,0.58842599,115330.0,115310.0,0.19670549]
[1760301462886,0.24842599,115330.0,115310.0,0.19670549]
[1760301463098,0.58842599,115330.0,115310.0,0.19870549]
[1760301463301,0.52663545,115340.0,115320.0,0.28717972]
[1760301463435,0.00049545,115340.0,115330.0,0.19321541]
[1760301463637,0.00049545,115340.0,115330.0,0.31050731]
[1760301463836,0.00049545,115340.0,115330.0,0.40003683]
[1760301464253,0.86114295,115380.0,115370.0,0.17335529]
[1760301464254,0.09656362,115380.0,115370.0,0.17335529]
[1760301464460,0.09656362,115380.0,115370.0,0.09762826]
[1760301464656,0.02494,115390.0,115370.0,0.27097074]
[1760301464867,0.02494,115390.0,115380.0,0.17334026]
[1760301465082,0.02494,115400.0,115390.0,0.17332524]
[1760301465362,0.53825022,115400.0,115390.0,0.0558]
[1760301465581,0.57231022,115400.0,115390.0,0.02166]
[1760301465997,0.51332524,115390.0,115380.0,0.02166]
[1760301466206,0.17334026,115380.0,115370.0,0.04182826]
[1760301466424,5.17334026,115380.0,115370.0,0.06348826]
[1760301466649,0.17334026,115380.0,115370.0,0.09762826]
[1760301466941,0.19828026,115380.0,115370.0,0.09762826]
[1760301467148,0.17334026,115380.0,115370.0,0.09762826]
[1760301467351,0.23234026,115380.0,115370.0,0.09862826]
[1760301467573,6.03822629,115380.0,115370.0,0.04282826]
[1760301467781,5.23234026,115380.0,115370.0,0.04282826]
[1760301467976,0.23234026,115380.0,115370.0,0.06448826]
[1760301468156,0.17334026,115380.0,115370.0,0.09862826]
[1760301468779,0.17334026,115380.0,115370.0,0.09962826]
[1760301468988,0.28556026,115380.0,115370.0,0.04382826]
[1760301469617,1.03977629,115380.0,115370.0,0.04382826]
[1760301470462,6.37977629,115380.0,115370.0,0.04382826]
[1760301470666,5.62556026,115380.0,115370.0,0.04382826]
[1760301470875,6.37977629,115380.0,115370.0,0.04382826]
[1760301471421,6.37977629,115380.0,115370.0,0.04282826]
[1760301472018,6.37977629,115380.0,115370.0,0.04182826]
[1760301472449,6.37977629,115380.0,115370.0,0.04282826]
[1760301472966,5.62556026,115380.0,115370.0,0.04282826]
[1760301473170,6.02556026,115380.0,115370.0,0.04382826]
[1760301473829,0.91334026,115380.0,115370.0,0.27244355]
[1760301474023,0.57334026,115380.0,115370.0,0.09908826]
[1760301474253,0.63328026,115380.0,115370.0,0.04382826]
[1760301474458,6.43977629,115380.0,115370.0,0.04382826]
[1760301474660,6.77977629,115380.0,115370.0,0.04382826]
[1760301474866,1.77977629,115380.0,115370.0,0.04382826]
[1760301475285,6.77977629,115380.0,115370.0,0.04282826]
[1760301476182,6.77977629,115380.0,115370.0,0.04182826]
[1760301476817,6.77977629,115380.0,115370.0,0.04282826]
[1760301477987,0.34,115330.0,115320.0,0.19509045]
[1760301478160,0.20859468,115360.0,115320.0,0.42043694]
[1760301478358,0.20859468,115360.0,115350.0,0.02149]
[1760301478359,0.53990031,115360.0,115350.0,0.02149]
[1760301478722,0.57331031,115360.0,115350.0,0.02149]
[1760301479470,0.51338534,115350.0,115330.0,0.20373253]
[1760301479690,0.53991534,115350.0,115340.0,0.17340038]
[1760301479911,0.57332534,115350.0,115340.0,0.17340038]
[1760301480130,0.34,115350.0,115340.0,0.27990038]
[1760301480525,0.34,115350.0,115340.0,0.31005228]
[1760301480802,0.26086902,115370.0,115350.0,0.1733748]
[1760301480803,0.20858902,115370.0,115350.0,0.1733748]
[1760301480983,0.34,115360.0,115350.0,0.2464448]
[1760301481190,0.34,115360.0,115350.0,0.2800448]
[1760301481393,0.51337031,115360.0,115350.0,0.2286348]
[1760301481719,0.57331031,115360.0,115350.0,0.19504534]
[1760301482043,0.36653,115360.0,115350.0,0.22864534]
[1760301482245,0.53990031,115360.0,115350.0,0.22964534]
[1760301483465,0.57331031,115360.0,115350.0,0.22964534]
[1760301484022,0.57331031,115360.0,115350.0,0.19604534]
[1760301484205,0.57331031,115360.0,115350.0,0.17438534]
[1760301484612,0.34,115360.0,115350.0,0.28105534]
[1760301485363,0.57331031,115360.0,115350.0,0.19604534]
[1760301485887,0.57331031,115360.0,115350.0,0.17438534]
[1760301486258,0.39994,115360.0,115350.0,0.02266]
[1760301486499,6.37980634,115360.0,115350.0,0.001]
[1760301487272,6.37980634,115360.0,115330.0,0.02166]
[1760301487273,0.51340038,115340.0,115330.0,0.20374618]
[1760301487480,0.51340038,115340.0,115330.0,0.23734618]
[1760301487845,0.17341541,115330.0,115320.0,0.24588898]
[1760301488108,0.17341541,115330.0,115320.0,0.27948898]
[1760301488322,0.57335541,115330.0,115320.0,0.2708259]
[1760301488935,1.32757144,115330.0,115320.0,0.04213545]
[1760301489311,6.37985144,115330.0,115320.0,0.04313545]
[1760301489912,6.37985144,115330.0,115320.0,0.00149545]
[1760301490111,1.37985144,115330.0,115320.0,0.00149545]
[1760301490307,6.37985144,115330.0,115320.0,0.00049545]
[1760301490537,6.37985144,115330.0,115320.0,0.00149545]
[1760301490754,1.37985144,115330.0,115320.0,0.00149545]
[1760301490869,6.37985144,115330.0,115320.0,0.00149545]
[1760301491069,6.37985144,115330.0,115320.0,0.00049545]
[1760301491508,6.38438467,115330.0,115320.0,0.00049545]
[1760301491722,1.38438467,115330.0,115320.0,0.00049545]
[1760301491932,6.38438467,115330.0,115320.0,0.00049545]
[1760301492616,1.38438467,115330.0,115320.0,0.00049545]
[1760301492817,6.38438467,115330.0,115320.0,0.00049545]
[1760301493631,6.38538467,115330.0,115320.0,0.00049545]
[1760301493954,6.38438467,115330.0,115320.0,0.00049545]
[1760301494492,1.38438467,115330.0,115320.0,0.00049545]
[1760301494692,6.38438467,115330.0,115320.0,0.00049545]
[1760301496310,1.38438467,115330.0,115320.0,0.00049545]
[1760301496518,6.38438467,115330.0,115320.0,0.00049545]
[1760301496714,1.38438467,115330.0,115320.0,0.00049545]
[1760301497168,6.38438467,115330.0,115320.0,0.00049545]
[1760301497957,1.38438467,115330.0,115320.0,0.00049545]
[1760301498067,6.38438467,115330.0,115320.0,0.00049545]
[1760301498280,5.63016864,115330.0,115320.0,0.00049545]
[1760301498568,6.38438467,115330.0,115320.0,0.00049545]
[1760301499313,1.38438467,115330.0,115320.0,0.00049545]
[1760301499540,6.38438467,115330.0,115320.0,0.00049545]